bitfinex-derivatives/quotes_ETHF0:USTF0_20251028
["timestamp","ask_amount","ask_price","bid_price","bid_amount"]
[1761682877236,3.4615,3981.1,3980.1,3.5263]
[1761682877237,3.2078,3981.1,3980.1,3.5263]
[1761682877436,3.2078,3981.1,3980.3,3.5263]
[1761682877745,0.00272339,3981.1,3980.5,0.45221]
[1761682877939,0.00272339,3981.1,3981.0,6.7341]
[1761682878139,3.2078,3982.4,3981.5,3.5263]
[1761682878338,3.2078,3982.4,3981.4,0.45211]
[1761682878339,3.2078,3981.7,3981.6,4.702]
[1761682878537,3.65988,3981.7,3981.6,4.702]
[1761682878744,7.12138,3981.7,3981.6,4.702]
[1761682878946,0.45208,3981.7,3981.6,4.702]
[1761682879148,3.4615,3979.8,3977.9,3.5263]
[1761682879347,3.2078,3980.0,3979.1,4.701]
[1761682879548,3.2078,3980.0,3979.3,3.5263]
[1761682879848,0.45231,3979.7,3979.3,3.5263]
[1761682880145,0.45233,3979.6,3979.3,3.5263]
[1761682880447,1.13046,3980.9,3979.3,3.5263]
[1761682880448,3.2078,3980.4,3979.4,3.26695595]
[1761682880751,0.45214,3981.2,3980.3,3.5263]
[1761682881044,3.2078,3981.3,3980.6,3.5263]
[1761682881255,0.45209,3981.6,3980.9,3.5263]
[1761682881444,0.00302703,3981.7,3981.2,3.5263]
[1761682882144,0.00302703,3981.7,3981.2,3.6015]
[1761682882446,0.00302703,3981.7,3981.6,3.5263]
[1761682882646,0.00302703,3981.7,3981.6,8.2813]
[1761682882844,2.703e-05,3981.7,3981.6,16.73339]
[1761682883044,0.022,3982.8,3982.1,3.5263]
[1761682883250,3.2078,3983.6,3982.7,3.5263]
[1761682883541,3.2078,3983.6,3982.9,3.5263]
[1761682883542,0.45189,3983.5,3982.9,3.5263]
[1761682883743,3.4615,3985.3,3982.8,4.747]
[1761682883744,3.2078,3984.0,3983.5,3.5263]
[1761682883948,3.2078,3984.8,3983.7,3.5263]
[1761682884146,3.2078,3984.8,3984.1,3.5263]
[1761682884347,0.00194615,3984.8,3984.3,3.5263]
[1761682884551,0.00194615,3984.8,3984.4,4.744]
[1761682884552,3.20974615,3984.8,3984.4,4.744]
[1761682884740,3.2078,3984.5,3983.8,3.5263]
[1761682884942,0.00194615,3984.8,3983.1,3.5263]
[1761682884943,3.2078,3984.0,3983.1,3.5263]
[1761682885143,0.00194615,3984.8,3983.2,4.74]
[1761682885144,3.2078,3983.3,3983.2,4.74]
[1761682885546,3.2078,3983.7,3983.2,8.2663]
[1761682885752,3.2078,3984.2,3983.3,3.6015]
[1761682886051,3.2078,3984.2,3983.6,3.5263]
[1761682886255,3.2078,3983.8,3983.6,3.5263]
[1761682886451,3.2078,3983.8,3982.9,3.5263]
[1761682886648,3.2078,3984.0,3983.3,3.2078]
[1761682886853,3.2078,3984.0,3983.0,4.735]
[1761682886854,3.20974615,3984.8,3984.0,1.3909]
[1761682887050,3.20974615,3984.8,3984.2,3.5263]
[1761682887452,3.46344615,3984.8,3984.3,4.732]
[1761682887642,3.20974615,3984.8,3984.5,3.5263]
[1761682887850,6.67124615,3984.8,3984.6,4.73]
[1761682888050,3.20974615,3984.8,3984.2,4.73]
[1761682888344,0.00194615,3984.8,3984.7,3.5263]
[1761682888551,0.00194615,3984.8,3984.7,8.2543]
[1761682889253,3.2078,3986.4,3985.6,3.5263]
[1761682889450,3.2078,3986.8,3985.7,8.2533]
[1761682889658,3.4615,3987.6,3985.8,3.5263]
[1761682889659,3.2078,3986.3,3985.8,3.5263]
[1761682890145,3.2078,3985.9,3985.8,0.00281358]
[1761682890352,3.4615,3985.8,3984.4,3.5263]
[1761682890552,3.2078,3984.6,3983.5,3.5263]
[1761682890751,3.2078,3984.0,3983.5,3.5263]
[1761682891458,6.6693,3983.6,3983.5,4.72271616]
[1761682891753,3.2078,3983.6,3983.5,4.72271616]
[1761682893047,3.2078,3984.0,3983.5,4.72271616]
[1761682893247,3.4615,3984.4,3983.6,3.5263]
[1761682893248,3.2078,3984.4,3983.6,3.5263]
[1761682893555,3.2078,3984.0,3983.6,3.5263]
[1761682893758,3.2078,3984.4,3983.7,0.0752]
[1761682893943,3.2078,3984.4,3983.8,3.5263]
[1761682894148,3.2078,3984.8,3984.0,3.5263]
[1761682894450,3.2078,3984.8,3984.1,4.704]
[1761682895154,0.00318372,3986.3,3984.1,4.704]
[1761682895155,3.4615,3984.3,3984.1,4.704]
[1761682895549,3.4615,3984.3,3982.4,1.3909]
[1761682895550,3.4615,3984.1,3982.7,3.2078]
[1761682895744,3.8717,3984.4,3982.1,4.699]
[1761682895745,6.6693,3983.0,3982.1,4.699]
[1761682895950,3.2078,3982.6,3982.1,4.699]
[1761682896150,3.2078,3982.2,3982.1,4.699]
[1761682896551,3.2078,3982.2,3982.1,8.22847837]
[1761682896552,3.21101479,3982.2,3982.1,8.22847837]
[1761682896753,3.21101479,3982.2,3982.1,4.70217837]
[1761682897555,0.00321479,3982.2,3982.1,8.75571837]
[1761682897755,3.51e-06,3982.7,3982.6,3.5263]
[1761682897957,3.4615,3984.4,3983.3,3.9782]
[1761682897958,3.2078,3984.0,3983.3,3.9782]
[1761682898157,3.2078,3984.0,3983.4,7.8948]
[1761682898457,3.2078,3984.0,3983.3,3.9782]
[1761682898458,3.4615,3983.5,3981.4,3.2078]
[1761682898655,3.2078,3982.6,3981.7,4.686]
[1761682898959,3.4615,3982.5,3981.7,4.686]
[1761682899360,3.2078,3982.2,3981.7,4.686]
[1761682899550,6.5102,3982.2,3981.7,4.686]
[1761682900252,3.3024,3982.1,3981.7,4.686]
[1761682900451,3.3024,3981.7,3981.0,4.689]
[1761682900652,3.2078,3981.4,3981.0,4.689]
[1761682900852,3.3024,3981.6,3981.0,4.689]
[1761682901055,3.3024,3981.0,3980.2,4.686]
[1761682901252,3.3024,3981.0,3980.2,4.68897057]
[1761682901454,3.3024,3980.6,3980.2,4.68897057]
[1761682901649,3.2078,3981.1,3980.3,3.3266]
[1761682902057,3.2078,3981.1,3980.2,4.68897057]
[1761682902259,3.3024,3981.0,3980.2,4.68897057]
[1761682902659,3.3024,3980.3,3980.2,4.68897057]
[1761682902857,3.3024,3980.3,3980.2,0.00297057]
[1761682903661,3.3024,3980.1,3979.6,4.679]
[1761682903854,6.5102,3979.7,3979.6,4.679]
[1761682904769,6.51278237,3979.7,3979.6,4.6812949]
[1761682905065,6.51278237,3979.7,3979.6,8.0078949]
[1761682905066,0.00258237,3979.7,3979.6,8.0078949]
[1761682905249,0.00258237,3979.7,3979.6,4.6812949]
[1761682905652,0.00258237,3979.7,3979.6,8.0078949]
[1761682905852,1.30626064,3982.9,3979.6,8.0078949]
[1761682905853,3.2078,3981.5,3980.7,3.3266]
[1761682906053,3.2078,3982.0,3981.1,3.3266]
[1761682906257,3.2078,3981.6,3980.8,4.66]
[1761682906461,3.2078,3981.6,3980.9,3.3266]
[1761682906663,3.2078,3981.6,3980.9,3.77877]
[1761682906855,0.00196186,3981.6,3981.5,3.3266]
[1761682907056,3.2078,3982.4,3981.8,3.3266]
[1761682907261,3.2078,3982.4,3981.8,6.98647]
[1761682907464,3.3024,3983.3,3981.8,6.98647]
[1761682907465,3.2078,3982.8,3982.0,3.3266]
[1761682907663,3.2078,3982.8,3982.1,4.657]
[1761682908058,0.00210424,3982.4,3982.2,3.4018]
[1761682908364,0.00210424,3982.4,3982.2,3.3266]
[1761682908566,0.00210424,3982.4,3981.3,3.3266]
[1761682908757,0.00210424,3982.4,3981.5,3.2078]
[1761682908958,0.00210424,3982.4,3981.6,3.3266]
[1761682909160,6.51230424,3982.4,3981.5,3.2078]
[1761682909657,6.51230424,3982.4,3978.9,2.2288751]
[1761682909658,3.3024,3981.5,3980.1,4.645]
[1761682909955,3.2078,3981.1,3980.2,3.3266]
[1761682910157,3.2078,3981.1,3980.3,3.3266]
[1761682910662,3.2078,3981.5,3980.8,3.3266]
[1761682910861,3.2078,3981.5,3980.9,4.649]
[1761682911061,3.2078,3981.9,3980.9,4.649]
[1761682911263,3.2078,3981.9,3980.9,7.9756]
[1761682911759,3.2078,3981.5,3980.9,4.649]
[1761682912562,3.2078,3981.5,3980.6,3.2078]
[1761682912763,3.3024,3981.4,3981.0,4.641]
[1761682912957,0.00210424,3982.4,3981.8,3.3266]
[1761682913152,3.2078,3982.7,3982.0,3.3266]
[1761682913363,3.2078,3982.3,3981.3,3.3266]
[1761682913660,0.22008607,3985.1,3981.5,3.3266]
[1761682913661,3.3024,3982.5,3981.5,3.3266]
[1761682913962,3.2078,3982.8,3981.9,3.3266]
[1761682914261,3.2078,3982.8,3982.4,3.3266]
[1761682914459,3.3024,3982.7,3982.5,4.637]
[1761682914655,3.20996677,3982.8,3982.5,4.637]
[1761682914867,6.51236677,3982.8,3982.6,4.636]
[1761682915269,3.3024,3982.7,3982.6,4.636]
[1761682915862,3.20996677,3982.8,3982.4,0.00208735]
[1761682916062,6.51236677,3982.8,3982.4,0.00208735]
[1761682916363,3.3024,3982.7,3982.4,0.00208735]
[1761682919063,3.20996677,3982.8,3982.5,3.3266]
[1761682919468,0.00216677,3982.8,3982.5,3.3266]
[1761682919664,3.2078,3983.2,3982.5,3.3266]
[1761682919866,6.5102,3982.8,3982.4,0.00208735]
[1761682920068,3.3024,3982.7,3982.5,4.617]
[1761682920462,3.2078,3982.8,3982.6,3.3266]
[1761682920662,3.2078,3982.8,3982.5,4.617]
[1761682920663,3.2078,3983.6,3982.8,3.3266]
[1761682920871,3.2078,3984.4,3983.7,0.45185]
[1761682921065,3.2078,3984.8,3983.9,3.3266]
[1761682921266,3.2078,3984.8,3984.0,7.9396]
[1761682921467,6.5102,3984.3,3983.2,3.3266]
[1761682921670,3.3024,3984.2,3983.3,4.613]
[1761682921872,0.00277169,3984.2,3983.9,3.77843]
[1761682922065,3.30517169,3984.2,3983.6,3.2078]
[1761682922270,3.30517169,3984.2,3983.2,3.3266]
[1761682922271,6.5102,3983.8,3983.7,4.609]
[1761682922465,3.21057169,3984.2,3983.8,3.3266]
[1761682922669,0.00277169,3984.2,3983.8,3.3266]
[1761682923066,3.3024,3984.1,3983.2,3.3266]
[1761682923267,3.2078,3983.3,3983.2,4.609]
[1761682923667,6.5102,3983.3,3983.2,4.609]
[1761682923968,6.5102,3983.3,3982.5,4.609]
[1761682923969,3.3024,3983.2,3982.5,4.609]
[1761682924166,3.2078,3982.6,3982.5,4.609]
[1761682924368,6.5102,3983.2,3982.5,4.609]
[1761682924568,3.2078,3982.8,3982.6,3.3266]
[1761682924872,3.2078,3983.2,3982.8,0.45195]
[1761682925075,2.16712499,3985.2,3982.8,0.45195]
[1761682925076,3.2078,3983.6,3982.9,3.3266]
[1761682925372,3.2078,3983.6,3983.1,3.3266]
[1761682925572,3.2078,3983.8,3983.2,3.3266]
[1761682926470,3.2078,3983.8,3983.5,3.3266]
[1761682926767,3.2078,3983.8,3983.0,7.8098]
[1761682926768,3.2078,3984.8,3984.0,4.47532]
[1761682927070,3.2078,3984.8,3984.5,3.3266]
[1761682927271,3.2078,3985.6,3984.7,3.3266]
[1761682927476,3.2078,3986.0,3985.3,3.3266]
[1761682927672,3.2078,3986.4,3985.5,3.3266]
[1761682927868,3.3024,3986.5,3985.5,3.3266]
[1761682927869,3.2078,3985.6,3985.5,3.3266]
[1761682928070,3.2078,3986.0,3985.5,4.5900783]
[1761682928269,0.00232518,3986.4,3985.5,4.5900783]
[1761682928270,3.21012518,3986.4,3985.6,3.3266]
[1761682928473,3.2078,3986.0,3985.6,3.3266]
[1761682928670,0.00232518,3986.4,3985.6,3.3266]
[1761682928671,3.21012518,3986.4,3985.6,3.3266]
[1761682928876,3.2078,3986.3,3985.8,3.3984]
[1761682929185,0.00232518,3986.4,3986.0,3.3984]
[1761682929386,3.2078,3986.3,3985.6,6.59493798]
[1761682929686,3.2078,3986.3,3985.5,0.0020783]
[1761682929687,0.00232518,3986.4,3986.2,3.3984]
[1761682929877,0.00232518,3986.4,3986.3,8.0413]
[1761682930584,0.00232518,3986.4,3986.3,4.58]
[1761682930784,0.00232518,3986.4,3986.3,8.0393]
[1761682930980,0.00232518,3986.4,3986.3,8.1145]
[1761682931185,0.00232518,3986.4,3986.3,8.0393]
[1761682931484,0.00232518,3986.4,3986.3,4.58]
[1761682931684,0.00232518,3986.4,3986.3,8.0393]
[1761682932080,6.47232518,3986.4,3986.3,4.58]
[1761682932579,6.47232518,3986.4,3985.5,0.0020783]
[1761682932580,3.2622,3986.3,3985.7,4.569]
[1761682932777,3.2622,3985.7,3985.5,0.0020783]
[1761682932984,3.2622,3985.7,3983.9,3.2078]
[1761682933185,6.47,3984.0,3983.9,4.571]
[1761682933389,3.2078,3984.5,3984.0,3.4593]
[1761682933686,3.2078,3985.1,3984.5,3.4593]
[1761682933887,3.2078,3984.7,3984.6,4.572]
[1761682934088,3.2078,3985.1,3984.7,3.4593]
[1761682934286,3.2078,3985.0,3984.7,3.4593]
[1761682934480,3.2078,3985.4,3984.6,4.572]
[1761682934680,3.2078,3985.4,3984.6,8.0313]
[1761682934983,6.47,3985.0,3984.6,4.572]
[1761682935184,3.2078,3985.4,3984.7,3.4593]
[1761682935385,6.47,3985.0,3984.6,4.572]
[1761682935689,3.2078,3985.0,3984.6,4.572]
[1761682935989,3.2622,3984.9,3984.6,4.572]
[1761682936185,3.2078,3985.0,3984.5,0.0030707]
[1761682936384,3.2078,3985.1,3984.6,8.0253]
[1761682936785,3.2078,3985.6,3984.9,3.4593]
[1761682936980,3.2078,3985.6,3985.0,3.4593]
[1761682937183,3.21012518,3986.4,3985.6,3.4593]
[1761682937384,3.21012518,3986.4,3986.1,3.4593]
[1761682937583,3.2078,3987.6,3986.4,3.4593]
[1761682937892,3.2842,3987.8,3986.4,3.4593]
[1761682937893,3.2078,3987.2,3986.4,3.91085]
[1761682938088,3.2078,3987.2,3986.4,3.4593]
[1761682938389,3.2078,3987.6,3986.9,3.91079]
[1761682938585,3.2078,3987.6,3987.3,3.4593]
[1761682938986,3.20964925,3987.6,3987.4,0.45143]
[1761682939283,0.022,3987.8,3987.3,3.46205335]
[1761682939284,0.022,3987.8,3987.6,3.4593]
[1761682939687,3.2078,3988.4,3988.0,3.4593]
[1761682939987,3.2078,3988.8,3988.1,8.0133]
[1761682940187,3.2622,3988.3,3987.3,3.46205335]
[1761682940384,3.2078,3987.7,3987.4,8.0113]
[1761682940879,3.2078,3987.7,3987.3,0.00275335]
[1761682940880,3.2622,3987.6,3987.3,0.00275335]
[1761682941085,3.2078,3987.7,3987.3,3.46205335]
[1761682941586,3.2078,3987.7,3987.3,3.53725335]
[1761682941781,3.2078,3988.0,3987.3,3.53725335]
[1761682941987,3.2078,3988.0,3987.3,3.46205335]
[1761682942282,3.2078,3988.0,3987.3,0.00275335]
[1761682942283,6.47,3988.0,3987.3,0.00275335]
[1761682942487,6.47,3987.6,3987.4,4.541]
[1761682942784,3.2078,3987.6,3987.5,3.4593]
[1761682942983,3.2078,3988.2,3987.5,3.4593]
[1761682943182,3.2078,3988.6,3987.7,3.4593]
[1761682943386,3.2078,3988.6,3988.2,3.4593]
[1761682943586,3.2078,3988.6,3988.4,3.4593]
[1761682943790,3.2078,3988.6,3988.5,7.9943]
[1761682943989,0.00256897,3988.8,3988.6,3.4593]
[1761682944183,0.00256897,3988.8,3988.5,4.535]
[1761682944184,3.26476897,3988.8,3988.5,4.535]
[1761682944381,6.47,3988.6,3987.6,3.2078]
[1761682944695,3.2622,3988.0,3987.7,4.53]
[1761682945086,3.2078,3988.1,3987.7,4.53]
[1761682945288,3.2622,3988.6,3987.8,3.4593]
[1761682945289,3.2078,3988.5,3987.8,3.4593]
[1761682945487,3.2078,3988.5,3987.8,3.5345]
[1761682945789,3.2078,3988.6,3987.9,3.4593]
[1761682946092,0.00256897,3988.8,3987.9,3.4593]
[1761682946287,0.00256897,3988.8,3987.7,4.53]
[1761682946288,0.00256897,3988.8,3988.4,3.4593]
[1761682946592,0.00256897,3988.8,3988.0,3.27587284]
[1761682946593,0.00256897,3988.8,3988.6,3.4593]
[1761682946786,3.2622,3988.7,3987.8,3.20067284]
[1761682947089,3.2622,3987.9,3987.1,4.524]
[1761682947385,3.2078,3987.4,3987.1,4.524]
[1761682947790,6.47,3987.4,3987.1,4.524]
[1761682947980,3.2078,3987.4,3987.1,4.524]
[1761682948384,6.47,3987.4,3987.1,4.524]
[1761682949483,3.2622,3987.3,3985.1,3.4593]
[1761682949690,3.2078,3985.7,3985.0,3.2078]
[1761682949885,3.2078,3985.7,3985.2,3.4593]
[1761682950088,3.2078,3987.0,3986.2,3.4593]
[1761682950289,3.2078,3987.0,3986.6,3.4593]
[1761682950485,3.2078,3987.0,3986.8,3.9108]
[1761682950689,6.47,3987.0,3986.9,4.518]
[1761682950895,6.47178394,3987.0,3986.9,4.51977612]
[1761682951795,3.20958394,3987.0,3986.9,4.51977612]
[1761682952386,3.20958394,3987.0,3986.9,7.97907612]
[1761682952884,0.00178394,3987.0,3986.9,7.97907612]
[1761682953697,3.2078,3988.0,3987.3,3.4593]
[1761682953894,6.47,3988.8,3987.9,3.4593]
[1761682954195,3.2078,3989.2,3988.2,3.4593]
[1761682954384,3.2078,3989.2,3988.6,3.4593]
[1761682954584,3.2078,3989.2,3988.4,0.45132]
[1761682954585,3.2622,3989.1,3988.4,0.45132]
[1761682954783,3.2622,3989.1,3988.8,3.4593]
[1761682954784,0.00207062,3989.1,3988.8,3.4593]
[1761682955088,3.2078,3990.1,3989.2,3.4593]
[1761682955285,3.2078,3990.1,3989.7,3.4593]
[1761682955494,4.6607,3991.0,3988.9,3.26781396]
[1761682955495,3.2078,3990.5,3989.9,3.4593]
[1761682955894,3.21045622,3990.5,3989.9,3.46137973]
[1761682956105,3.2078,3990.1,3989.9,0.00207973]
[1761682956788,3.21045622,3990.5,3989.9,0.00207973]
[1761682956993,3.21045622,3990.5,3989.9,3.46137973]
[1761682957694,6.47265622,3990.5,3989.9,0.00207973]
[1761682957997,3.2622,3990.0,3989.9,0.00207973]
[1761682958391,3.21045622,3990.5,3989.9,3.46137973]
[1761682959794,3.2078,3990.1,3989.9,0.00207973]
[1761682959991,6.407,3990.1,3989.9,0.00207973]
[1761682960493,6.407,3990.1,3988.5,1.1283]
[1761682960494,3.1992,3989.9,3988.3,3.2078]
[1761682960698,3.2078,3989.1,3988.4,4.471]
[1761682960895,3.1992,3988.6,3988.4,4.471]
[1761682961088,3.2078,3988.7,3988.4,4.471]
[1761682961292,3.2078,3988.7,3988.5,3.1436]
[1761682961498,3.1992,3990.0,3989.4,3.1436]
[1761682961797,3.2078,3989.7,3989.5,4.468]
[1761682961998,1.30626064,3991.9,3989.5,4.468]
[1761682961999,3.2078,3990.1,3989.5,4.468]
[1761682962499,6.407,3990.1,3989.5,4.468]
[1761682962700,3.1992,3989.6,3989.5,4.468]
[1761682962899,3.2078,3989.7,3989.5,4.468]
[1761682963196,3.2078,3990.1,3989.6,3.1436]
[1761682963397,3.2078,3990.1,3989.8,3.1436]
[1761682963695,3.2078,3990.1,3989.5,4.468]
[1761682963897,3.2078,3989.7,3989.5,4.468]
[1761682964101,3.1992,3989.6,3989.5,4.468]
[1761682965700,3.2078,3989.7,3989.5,4.468]
[1761682966297,3.2078,3989.7,3989.5,4.9192]
[1761682966499,3.2078,3990.1,3989.5,4.9192]
[1761682966703,3.2078,3990.1,3989.5,4.468]
[1761682967005,3.2078,3990.1,3989.5,4.9192]
[1761682967297,6.407,3990.1,3989.5,4.468]
[1761682967499,3.1992,3989.6,3989.5,4.468]
[1761682968498,3.1992,3989.6,3988.5,0.00244316]
[1761682968702,3.1992,3988.7,3988.5,0.00244316]
[1761682969006,3.1992,3988.5,3987.6,0.04188]
[1761682969302,6.407,3987.7,3987.6,0.04188]
[1761682970097,1.2801,3987.5,3986.9,4.444]
[1761682970299,1.2801,3987.5,3985.3,40.8]
[1761682970300,3.1992,3986.9,3986.3,4.438]
[1761682970499,3.1992,3986.5,3986.3,4.438]
[1761682970895,3.2078,3986.6,3986.3,4.438]
[1761682970896,3.2078,3986.6,3986.4,3.1436]
[1761682971097,6.407,3987.3,3986.4,3.14603517]
[1761682971300,3.1992,3986.8,3986.4,0.00243517]
[1761682972009,6.407,3986.5,3986.4,0.00243517]
[1761682973496,3.2078,3986.9,3986.6,3.1436]
[1761682973700,3.2078,3987.3,3986.9,0.45151]
[1761682973903,6.407,3987.3,3986.7,4.435]
[1761682974306,3.2078,3987.3,3986.8,3.1436]
[1761682975202,3.2078,3987.3,3987.0,3.1436]
[1761682975403,3.2078,3987.3,3987.1,3.59509]
[1761682975606,0.00234901,3987.7,3987.3,3.1436]
[1761682976204,0.00234901,3987.7,3987.6,3.1436]
[1761682976407,3.1992,3987.5,3986.4,0.00243517]
[1761682976605,3.1992,3986.8,3986.4,0.00243517]
[1761682976807,3.2078,3986.9,3986.4,3.14603517]
[1761682977108,3.2078,3986.9,3986.4,3.22123517]
[1761682977308,3.2078,3987.4,3986.6,3.1436]
[1761682977509,3.2078,3987.4,3986.8,3.1436]
[1761682977712,3.1992,3986.9,3986.4,0.00243517]
[1761682978012,3.2078,3986.6,3986.4,0.00243517]
[1761682978811,6.407,3986.6,3986.4,0.00243517]
[1761682979007,3.2078,3986.6,3986.5,7.5786]
[1761682979208,3.2078,3987.5,3986.7,0.45153]
[1761682979405,3.2078,3987.5,3986.8,0.45152]
[1761682979605,3.1992,3987.4,3986.5,4.435]
[1761682979806,3.2078,3987.4,3986.5,7.5786]
[1761682980002,3.2078,3987.4,3986.8,3.1436]
[1761682980409,0.00234901,3987.7,3987.6,3.1436]
[1761682980616,3.2078,3988.7,3988.0,3.59498]
[1761682980811,3.2078,3988.7,3987.0,1.12874]
[1761682980812,3.1992,3988.2,3988.1,4.435]
[1761682981208,3.2078,3988.8,3988.2,3.1436]
[1761682981614,3.20970731,3988.8,3988.2,3.1436]
[1761682981916,3.20970731,3988.8,3988.1,4.435]
[1761682981917,3.1992,3988.3,3988.1,4.435]
[1761682982109,3.1992,3988.3,3987.0,3.1436]
[1761682982110,3.1992,3988.3,3987.0,6.3514]
[1761682982309,3.1992,3987.8,3987.1,4.435]
[1761682982509,3.1992,3987.4,3987.1,4.435]
[1761682982813,3.1992,3987.4,3986.4,3.14603517]
[1761682983115,3.2078,3987.4,3986.6,3.59514]
[1761682983415,3.2078,3987.4,3986.5,4.435]
[1761682983416,3.2078,3987.5,3986.7,0.45153]
[1761682983619,3.1992,3987.4,3986.6,0.45154]
[1761682984116,3.2078,3988.1,3987.1,3.1436]
[1761682984414,3.2078,3988.5,3988.3,3.59494]
[1761682984617,3.2078,3988.5,3988.4,7.5786]
[1761682985420,0.00190731,3988.8,3988.5,3.1436]
[1761682985619,0.00190731,3988.8,3988.4,4.435]
[1761682985812,3.20110731,3988.8,3988.4,4.435]
[1761682986314,3.20110731,3988.8,3987.1,1.1287]
[1761682986315,3.1992,3988.4,3987.1,3.1436]
[1761682986514,3.2078,3988.2,3987.3,3.1436]
[1761682986819,3.2078,3987.8,3987.3,3.1436]
[1761682987114,3.1992,3988.4,3987.7,3.1436]
[1761682987315,3.2078,3988.5,3987.8,7.5776]
[1761682987513,3.1992,3988.4,3987.9,4.434]
[1761682987718,6.407,3988.1,3988.0,4.434]
[1761682988315,3.2078,3988.1,3988.0,7.1464]
[1761682988618,0.00190731,3988.8,3988.3,2.7124]
[1761682988810,2.89190731,3988.8,3988.3,2.7124]
[1761682989211,2.89190731,3988.8,3988.0,4.88538]
[1761682989417,6.0978,3988.5,3988.0,4.434]
[1761682989719,2.89,3988.4,3988.1,4.434]
[1761682990317,2.89,3988.4,3988.2,4.434]
[1761682990820,6.1036,3988.5,3988.2,4.434]
[1761682991021,2.8958,3988.4,3988.2,4.434]
[1761682991322,3.2078,3988.5,3988.2,4.434]
[1761682991517,3.2078,3988.5,3988.3,3.21934]
[1761682991719,0.86862499,3991.0,3988.3,3.21934]
[1761682991720,3.2078,3989.3,3989.2,0.45125]
[1761682991924,3.2078,3989.7,3989.4,3.21922]
[1761682992220,3.2078,3989.7,3989.2,4.434]
[1761682992221,3.2078,3989.7,3989.6,2.768]
[1761682992623,3.2078,3989.7,3989.3,3.21923]
[1761682992811,3.21086772,3989.7,3989.3,3.22172525]
[1761682993319,3.21086772,3989.7,3989.4,2.768]
[1761682993520,3.21086772,3989.7,3989.3,0.00249525]
[1761682993521,2.8958,3989.6,3989.3,0.00249525]
[1761682993722,3.21086772,3989.7,3989.5,2.768]
[1761682994020,3.21086772,3989.7,3989.5,3.21921]
[1761682994216,0.00306772,3989.7,3989.5,3.21921]
[1761682995722,2.8958,3992.0,3990.9,2.768]
[1761682996018,2.82759354,3991.4,3990.1,3.2078]
[1761682996222,1.31434532,3993.0,3990.2,4.432]
[1761682996223,3.2078,3990.6,3990.2,4.432]
[1761682996618,3.21028028,3990.6,3990.2,4.432]
[1761682997021,3.21028028,3990.6,3989.3,0.00249525]
[1761682997218,3.2078,3989.7,3989.4,4.432]
[1761682997418,3.2078,3989.8,3989.5,2.768]
[1761682997718,3.2078,3990.3,3989.5,2.768]
[1761682998114,3.2078,3990.3,3989.6,0.45119]
[1761682998319,2.89828028,3990.6,3989.9,2.768]
[1761682998622,2.89828028,3990.6,3990.2,2.768]
[1761682998623,0.00248028,3990.6,3990.2,2.768]
[1761682998824,0.00248028,3990.6,3990.4,6.4269]
[1761682999017,0.00248028,3990.6,3990.5,7.199]
[1761682999219,0.00248028,3990.6,3990.5,10.43446872]
[1761682999415,0.00248028,3990.6,3990.5,10.50966872]
[1761682999619,3.2078,3991.7,3991.0,2.768]
[1761682999827,3.2078,3991.7,3991.2,2.768]
[1761683000536,2.8958,3991.6,3991.1,4.431]
[1761683000829,6.1036,3991.2,3990.0,4.2822]
[1761683001124,3.2078,3990.7,3990.0,2.768]
[1761683001316,3.2078,3990.7,3990.2,2.768]
[1761683001621,0.00263522,3991.7,3990.5,2.768]
[1761683001622,3.2078,3991.3,3990.5,2.768]
[1761683001830,0.86862499,3994.0,3991.2,6.3516]
[1761683002015,2.8958,3994.2,3993.1,3.2078]
[1761683002219,2.8958,3994.2,3991.5,41.92744]
[1761683002220,2.8958,3993.8,3992.7,3.2078]
[1761683002427,3.2078,3993.9,3992.7,3.2078]
[1761683002428,2.8958,3993.4,3992.8,4.43]
[1761683002617,3.2078,3993.9,3992.8,4.43]
[1761683002816,6.1036,3993.9,3993.3,0.45078]
[1761683003023,2.89802769,3993.9,3993.4,4.88076]
[1761683003319,2.89802769,3993.9,3993.5,3.2078]
[1761683004018,2.89802769,3993.9,3993.6,4.43]
[1761683004323,2.89802769,3993.9,3993.7,4.43]
[1761683005133,0.00222769,3993.9,3993.7,7.64872]
[1761683005337,0.00222769,3993.9,3993.7,4.88073]
[1761683005526,2.89802769,3993.9,3993.7,4.43]
[1761683006035,0.00222769,3993.9,3993.7,4.43]
[1761683006234,2.89802769,3993.9,3993.7,4.43]
[1761683006430,0.00222769,3993.9,3993.7,4.43]
[1761683007129,0.00222769,3993.9,3993.7,4.88073]
[1761683007324,0.00222769,3993.9,3993.7,4.43]
[1761683007644,6.1036,3993.8,3992.8,0.00264846]
[1761683007836,6.1036,3992.9,3992.8,0.00264846]
[1761683008032,2.8958,3992.9,3992.8,0.00264846]
[1761683008238,2.8958,3993.3,3992.8,0.00264846]
[1761683008432,2.8958,3993.3,3992.8,2.77064846]
[1761683008636,3.2078,3993.5,3992.8,2.77064846]
[1761683008834,2.8958,3992.9,3992.8,0.00264846]
[1761683009542,2.8958,3993.4,3992.8,0.00264846]
[1761683010036,2.8958,3993.1,3992.8,0.00264846]
[1761683010434,6.1036,3993.6,3992.8,0.00264846]
[1761683011347,6.1036,3993.6,3992.9,2.768]
[1761683011541,2.8958,3993.5,3992.8,0.00264846]
[1761683012046,3.2078,3993.6,3993.0,3.2078]
[1761683012339,2.89802769,3993.9,3993.0,3.2078]
[1761683012544,2.89802769,3993.9,3993.1,2.768]
[1761683012740,0.00222769,3993.9,3993.5,2.768]